[Event "93rd German Championship 2022"]
[Site "Magdeburg"]
[Date "2022.08.20"]
[Round "9.4"]
[White "Krastev, Alexander"]
[Black "Poetsch, Hagen"]
[Result "1/2-1/2"]
[ECO "B66"]
[WhiteElo "2435"]
[BlackElo "2500"]
[Annotator "TA"]
[PlyCount "81"]
[EventDate "2022.08.14"]
[EventType "swiss"]
[EventCountry "GER"]
[SourceTitle "playchess.com"]
[Source "ChessBase"]
[SourceQuality "1"]
[TimeControl "40/5400+30:1800+30"]

{[%evp 13,81,28,39,18,25,22,56,52,72,37,108,115,100,65,104,63,74,62,75,25,31,16,22,27,20,0,9,8,19,14,14,0,0,0,0,0,0,0,0,0,6,4,86,77,90,43,210,213,225,190,109,0,0,0,0,0,12,0,0,0,0,0,0,0,0,0,0,0,0,0]} 1. e4 {[%emt 0:00:02]} c5 {[%emt 0:02:01]} 2. Nc3 {[%emt 0:00:12]} d6 {[%emt 0:00:05]} 3. Nge2 {[%emt 0:00:10]} Nc6 {[%emt 0:01:23]} 4. d4 {[%emt 0:00:21]} cxd4 {[%emt 0:00:06]} 5. Nxd4 {[%emt 0:00:05]} Nf6 {[%emt 0:00:33]} 6. Bg5 {[%emt 0:03:14]} e6 {[%emt 0:00:31]} 7. Qd2 {[%emt 0:01:53]} a6 {[%emt 0:00:06]} 8. Nxc6 {[%emt 0:00:16] B66: Sicilian: Richter-Rauzer: 7...a6 8 0-0-0 h6.} bxc6 {[%emt 0:00:08]} 9. O-O-O {[%emt 0:00:11][%cal Oe4e5]} Qa5 {[%emt 0:12:19]} 10. Bc4 {[%emt 0:07:25] White is slightly better.} d5 {[%emt 0:04:31]} 11. Bb3 {[%emt 0:14:33]} (11. Bxf6 $5 gxf6 12. Bb3 $11) 11... Bb4 {[%emt 0:09:56]} (11... Be7 $14) 12. Bxf6 $16 {[%emt 0:08:34]} ({Don't play} 12. exd5 $6 Nxd5 13. Qd4 (13. Bxd5 cxd5 14. a3 Bxc3 $15) 13... Bxc3 14. bxc3 O-O $11) 12... gxf6 {[%emt 0:00:06]} 13. exd5 {[%emt 0:00:19]} cxd5 {[%emt 0:02:29] [#]} 14. Qd4 $146 {[%emt 0:09:20][%cal Rc3d5] Strongly threatening Nxd5!} ({Predecessor:} 14. Qe3 Bxc3 15. Rxd5 Bxb2+ 16. Kxb2 Qc7 17. Rhd1 Ke7 18. Ba4 Rb8+ 19. Kc1 Qb6 20. Rd7+ Bxd7 21. Rxd7+ Kf8 22. Qh6+ Kg8 23. Qxf6 {1-0 (23) Lorentzen,O (2458)-Thomsen,K (2366) ICCF email 2001}) 14... Bxc3 {[%emt 0:20:30]} 15. bxc3 {[%emt 0:00:27]} Ke7 {[%emt 0:00:09]} 16. c4 {[%emt 0:12:39] White is more active.} ({White should try} 16. Rd3 $16) 16... Qa3+ $11 {[%emt 0:07:15]} 17. Kb1 {[%emt 0:00:24]} dxc4 {[%emt 0:05:03]} 18. Qxc4 {[%emt 0:00:37] White wants to mate with Qc7+.} Ra7 {[%emt 0:03:05] Prevents Qc7+.} 19. Rd4 {[%emt 0:15:13]} Rd7 {[%emt 0:07:03]} ({Don't do} 19... Rb7 20. Rhd1 Bd7 21. Qd3 $16 (21. Ka1 Rc8 $14)) 20. Rxd7+ {[%emt 0:01:55]} Bxd7 {[%emt 0:00:07]} 21. Rd1 {[%emt 0:00:03]} Rc8 {[%emt 0:01:44] [#] Against Qc7} 22. Rxd7+ $1 {[%emt 0:12:14]} Kxd7 {[%emt 0:00:06][%mdl 4096] Endgame KQR-KQB} 23. Ba4+ {[%emt 0:00:02]} Ke7 {[%emt 0:01:25]} 24. Qxc8 {[%emt 0:00:13] Qe8+ would kill now.} Qxa4 {[%emt 0:00:06] KQ-KQ} 25. Qc5+ {[%emt 0:00:10]} Ke8 {[%emt 0:01:45]} 26. Kb2 {[%emt 0:01:15]} Qe4 {[%emt 0:01:56]} 27. g3 {[%emt 0:02:45]} Qe2 {[%emt 0:00:58] [#]} (27... Qg2 $11) 28. Kb3 $1 $16 {[%emt 0:00:57]} f5 {[%emt 0:03:16]} 29. Ka4 {[%emt 0:01:43]} ({White should play} 29. a3 $16) 29... f4 $2 {[%emt 0:03:39]} (29... Qd2 $1 $14) 30. gxf4 $18 {[%emt 0:05:58]} Qe4+ {[%emt 0:00:14]} 31. Ka5 {[%emt 0:00:02]} Qxf4 {[%emt 0:00:20]} 32. c4 {[%emt 0:01:06]} (32. h3 $16) 32... Qxh2 $11 {[%emt 0:01:28] The position is equal.} 33. Kxa6 {[%emt 0:01:04]} h5 {[%emt 0:00:48][%cal Bh7h5,Bh5h4,Bh4h3][%mdl 32]} 34. Kb7 {[%emt 0:01:31] Threatens to win with Qb5+.} h4 {[%emt 0:00:48]} 35. Qd4 {[%emt 0:00:34] aiming for c5.} e5 {[%emt 0:06:04]} 36. Qd6 {[%emt 0:00:30] And now c5 would win.} Qf4 {[%emt 0:04:28]} 37. c5 {[%emt 0:00:13] Black must now prevent c6.} h3 $1 {[%emt 0:00:55]} (37... Qxf2 38. c6 Qb2+ 39. Kc8 $18) 38. Qb8+ {[%emt 0:00:10]} Ke7 {[%emt 0:00:06]} 39. Qd6+ {[%emt 0:00:03]} Ke8 {[%emt 0:00:05]} 40. Qb8+ {[%emt 0:01:28]} Ke7 {[%emt 0:00:05] ( -> ...Qb4+)} 41. Qd6+ {[%emt 0:06:14] Weighted Error Value: White=0.11 (very precise) /Black=0.21 (precise)} 1/2-1/2

[Event "93rd German Championship 2022"]
[Site "Magdeburg"]
[Date "2022.08.20"]
[Round "9.5"]
[White "Richter, Nils"]
[Black "Carlstedt, Jonathan"]
[Result "1-0"]
[ECO "E48"]
[WhiteElo "2359"]
[BlackElo "2446"]
[Annotator "TA"]
[PlyCount "75"]
[EventDate "2022.08.14"]
[EventType "swiss"]
[EventCountry "GER"]
[SourceTitle "playchess.com"]
[Source "ChessBase"]
[SourceQuality "1"]
[TimeControl "40/5400+30:1800+30"]

{[%evp 11,75,0,0,0,0,0,0,0,0,-7,0,0,22,-25,-6,-43,-31,-38,-38,-33,-10,-17,0,-9,-8,-49,0,0,0,0,26,0,0,8,129,8,105,95,193,192,302,295,279,289,598,574,612,596,587,571,612,593,557,326,326,326,326,318,550,544,834,864,1372,1331,5077,1712]} 1. d4 {[%emt 0:00:02]} Nf6 {[%emt 0:00:22]} 2. c4 {[%emt 0:00:08]} e6 {[%emt 0:00:06]} 3. Nc3 {[%emt 0:00:16]} Bb4 {[%emt 0:00:07]} 4. e3 {[%emt 0:00:17]} O-O {[%emt 0:00:36]} 5. Bd3 {[%emt 0:00:13]} d5 {[%emt 0:00:30]} 6. cxd5 {[%emt 0:00:47]} exd5 {[%emt 0:00:12]} 7. a3 {[%emt 0:00:14] E48: Nimzo-Indian: Rubinstein: 5 Bd3 d5 including 6 Ne2, but excluding 6 a3.} Bd6 {[%emt 0:06:05]} 8. Qc2 {[%emt 0:00:45]} b6 {[%emt 0:06:40]} 9. b4 {[%emt 0:02:40] [#] The position is equal.} Re8 $146 {[%emt 0:04:39]} ({Predecessor:} 9... Bb7 10. Nge2 Nbd7 11. Nb5 a6 12. Nxd6 cxd6 13. a4 Rc8 14. Qb3 Re8 15. O-O Nf8 {½-½ (67) Grischuk,A (2758)-Hakobyan,A (2601) Chess.com INT 2022}) 10. Nge2 {[%emt 0:02:34]} c6 {[%emt 0:03:20]} 11. O-O {[%emt 0:10:00]} a5 {[%emt 0:04:48]} 12. bxa5 {[%emt 0:14:42]} (12. b5 {should be considered.}) 12... Rxa5 $11 {[%emt 0:00:35]} 13. Ng3 {[%emt 0:00:47]} Ba6 {[%emt 0:06:50]} 14. a4 {[%emt 0:05:59]} Bxd3 {[%emt 0:10:43]} 15. Qxd3 {[%emt 0:00:03]} Nbd7 {[%emt 0:00:08]} 16. Bd2 {[%emt 0:10:27]} g6 {[%emt 0:04:23]} 17. f3 {[%emt 0:01:22]} Ra7 {[%emt 0:03:52]} 18. Rae1 {[%emt 0:05:32]} Re6 {[%emt 0:07:40]} (18... Bxg3 $15 {is superior.} 19. hxg3 Nh5) 19. Nge2 {[%emt 0:07:15]} Bf8 {[%emt 0:06:18]} 20. Nf4 {[%emt 0:01:22]} Re8 {[%emt 0:00:12]} 21. e4 {[%emt 0:01:35]} dxe4 {[%emt 0:00:40]} 22. fxe4 {[%emt 0:00:15] Strongly threatening e5.} Bh6 {[%emt 0:06:39]} (22... Nc5 $11 23. dxc5 Rd7) 23. Qh3 {[%emt 0:05:27] White is more active.} ({White should play} 23. Qc4 $16) 23... Bxf4 {[%emt 0:03:38]} (23... Nf8 $1 $11) 24. Bxf4 $16 {[%emt 0:00:35][%cal Bd2f4,Bf4h6,Bh6f8][%mdl 32] Black must now prevent Bg5.} Nf8 {[%emt 0:00:21] [#]} (24... Qe7 $16 {might work better.}) 25. d5 $1 $18 {[%emt 0:01:36] Threatens to win with Bg5.} ({Much less strong is} 25. Be5 $6 Rxe5 26. dxe5 Qd4+ 27. Qe3 Qxe3+ 28. Rxe3 Ng4 $14) 25... Nh5 {[%emt 0:06:48]} (25... Qe7 $142) 26. Bh6 {[%emt 0:03:21]} ({Resist} 26. dxc6 $6 Nxf4 27. Rxf4 Qd4+ 28. Rf2 Qc5 $18) 26... cxd5 {[%emt 0:02:20]} 27. Nxd5 {[%emt 0:02:40]} ({Weaker is} 27. exd5 Rxe1 28. Rxe1 Re7 29. Rxe7 Qxe7 $14) 27... Qd7 $2 {[%emt 0:10:05]} (27... Re5 {is tougher.} 28. Qc3 Nd7) 28. Qf3 {[%emt 0:01:29]} Re6 {[%emt 0:04:49]} 29. g4 {[%emt 0:02:09]} Ng7 {[%emt 0:00:02]} 30. Qc3 {[%emt 0:00:38][%csl Gh6][%cal Rc3g7] [#]} Ne8 {[%emt 0:00:57]} 31. Bxf8 {[%emt 0:00:24]} Rc6 {[%emt 0:00:05]} 32. Ne7+ {[%emt 0:07:24]} Qxe7 {[%emt 0:00:05]} 33. Qxc6 {[%emt 0:00:07]} Kxf8 {[%emt 0:00:14]} 34. e5 {[%emt 0:01:02][%cal Be4e5,Be5e6][%mdl 32]} Kg8 $2 {[%emt 0:02:09]} (34... Qa3 35. Re4 Qc5+ 36. Qxc5+ bxc5) 35. e6 {[%emt 0:01:45] White is clearly winning.} f5 {[%emt 0:00:01]} 36. gxf5 {[%emt 0:00:48][%cal Bg4f5,Bf5f6][%mdl 32]} Rc7 {[%emt 0:00:08]} 37. Qg2 {[%emt 0:00:49]} Rc5 {[%emt 0:00:39]} 38. f6 {[%emt 0:02:42] Weighted Error Value: White=0.19 (very precise) /Black=0.44} 1-0

[Event "93rd German Championship 2022"]
[Site "Magdeburg"]
[Date "2022.08.20"]
[Round "9.6"]
[White "Schulz, Lukas"]
[Black "Langheinrich, Ferenc"]
[Result "1/2-1/2"]
[ECO "B06"]
[WhiteElo "2272"]
[BlackElo "2357"]
[Annotator "TA"]
[PlyCount "53"]
[EventDate "2022.08.14"]
[EventType "swiss"]
[EventCountry "GER"]
[SourceTitle "playchess.com"]
[Source "ChessBase"]
[SourceQuality "1"]
[TimeControl "40/5400+30:1800+30"]

{[%evp 9,53,-20,2,-29,-30,-23,-7,-18,-15,-32,-15,-34,-42,-76,-8,-30,-24,-18,-11,-12,0,-46,0,-23,0,0,0,-10,-8,-7,0,0,0,0,0,0,0,6,17,-2,0,0,5,0,0,-12]} 1. e4 {[%emt 0:00:03]} g6 {[%emt 0:00:09]} 2. Nc3 {[%emt 0:02:33]} Bg7 {[%emt 0:00:39]} 3. Bc4 {[%emt 0:00:52]} d6 {[%emt 0:03:28]} 4. h4 {[%emt 0:02:15]} h5 {[%emt 0:06:01]} 5. Nh3 {[%emt 0:05:53]} Bg4 {[%emt 0:05:24] [#]} 6. f3 $146 {[%emt 0:05:43] B06: Modern Defence.} ({Predecessor:} 6. Ne2 Bxh3 7. Rxh3 Nf6 8. c3 Qc8 9. Qb3 Rf8 10. d4 Nbd7 11. Bg5 e5 12. Rf3 {½-½ (37) Vasconcellos,J (2190)-Klopfenstein,G (2211) Parsippany 2000}) 6... Bxh3 {[%emt 0:02:09]} 7. Rxh3 {[%emt 0:00:05]} Nc6 {[%emt 0:03:10]} 8. a3 {[%emt 0:05:56]} e6 {[%emt 0:01:55]} 9. d3 {[%emt 0:00:39]} Bf6 {[%emt 0:11:16]} 10. g3 {[%emt 0:06:35]} Qd7 {[%emt 0:03:32]} 11. Bg5 {[%emt 0:08:07]} O-O-O {[%emt 0:02:49]} (11... Bxg5 $17 12. hxg5 Nd4) 12. Qe2 {[%emt 0:04:21]} Qe7 {[%emt 0:15:26]} 13. Bxf6 {[%emt 0:17:45]} Qxf6 {[%emt 0:04:49]} 14. O-O-O {[%emt 0:09:51]} Nge7 {[%emt 0:05:00]} 15. Rhh1 {[%emt 0:02:54]} (15. Ba2 $11) 15... Kb8 {[%emt 0:02:15]} (15... d5 $15 16. Ba2 Kb8) 16. Ba2 {[%emt 0:01:44]} d5 {[%emt 0:06:05]} 17. Qf2 {[%emt 0:05:27] The position is equal.} Qd4 {[%emt 0:03:20]} 18. Rhf1 {[%emt 0:01:45]} Qxf2 {[%emt 0:02:46]} 19. Rxf2 {[%emt 0:00:05]} d4 {[%emt 0:00:57]} 20. Ne2 {[%emt 0:02:50][%cal Bc3e2,Be2g1,Bg1h3,Bh3g5,Bg5h7][%mdl 32]} Ne5 {[%emt 0:00:27]} 21. Ng1 {[%emt 0:00:25]} c5 {[%emt 0:00:48]} 22. Nh3 {[%emt 0:00:33]} b5 {[%emt 0:05:39]} 23. Ng5 {[%emt 0:00:21]} Rhf8 {[%emt 0:02:20]} 24. Nh7 {[%emt 0:04:15]} Rh8 {[%emt 0:00:11]} 25. Ng5 {[%emt 0:00:04]} Rhf8 {[%emt 0:00:51]} 26. Nh7 {[%emt 0:00:12]} Rh8 {[%emt 0:00:05]} 27. Ng5 $1 {Weighted Error Value: White=0.11 (very precise) /Black=0.13 (very precise)} 1/2-1/2

[Event "93rd German Championship 2022"]
[Site "Magdeburg"]
[Date "2022.08.20"]
[Round "9.7"]
[White "Bethke, Richard"]
[Black "Kunin, Vitaly"]
[Result "0-1"]
[ECO "B28"]
[WhiteElo "2381"]
[BlackElo "2528"]
[Annotator "TA"]
[PlyCount "104"]
[EventDate "2022.08.14"]
[EventType "swiss"]
[EventCountry "GER"]
[SourceTitle "playchess.com"]
[Source "ChessBase"]
[SourceQuality "1"]
[TimeControl "40/5400+30:1800+30"]

{[%evp 11,104,0,-10,-52,-50,-25,-43,-58,-51,-44,-42,-68,-38,-32,-31,-30,-23,-37,-28,-50,-25,-41,-14,0,-16,-10,0,0,0,-6,0,0,0,0,8,-13,-21,0,0,-6,-12,-25,0,0,0,0,15,0,0,0,22,25,21,0,0,0,31,-19,-19,-10,-20,-11,0,0,0,-417,-391,-600,-600,-670,-658,-587,-300,-296,-283,-421,-420,-641,-641,-634,-634,-634,-634,-628,-633,-620,-620,-612,-605,-605,-605,-598,-583,-725,-570]} 1. e4 {[%emt 0:00:03]} c5 {[%emt 0:00:14]} 2. Nf3 {[%emt 0:00:42]} a6 {[%emt 0:00:11]} 3. Nc3 {[%emt 0:02:52]} b5 {[%emt 0:01:05]} 4. d4 {[%emt 0:05:52]} cxd4 {[%emt 0:00:12]} 5. Nxd4 {[%emt 0:01:15]} Bb7 {[%emt 0:00:19]} 6. Be3 {[%emt 0:05:39]} e6 {[%emt 0:01:04]} 7. e5 {[%emt 0:01:38] [#] B43: Sicilian: Kan Variation: 5 Nc3.} Nc6 $146 {[%emt 0:02:19]} ({Predecessor:} 7... Qc7 8. Qd2 Qxe5 9. O-O-O Nf6 10. Bf4 Qc5 11. Be3 Qc8 12. f4 Bb4 13. f5 O-O {0-1 (34) Yeoh,X (1286)-Doluweera,D (1815) Penang 2015}) 8. Nxc6 {[%emt 0:07:40]} Bxc6 {[%emt 0:00:22]} 9. Ne2 {[%emt 0:00:27] Black is slightly better.} Qa5+ {[%emt 0:04:41]} 10. Qd2 {[%emt 0:02:24]} Qxd2+ {[%emt 0:00:34]} 11. Kxd2 {[%emt 0:09:01]} f6 {[%emt 0:07:02]} (11... d6 $5 {[%cal Rd6e5]} 12. exd6 Bxd6 $15) 12. exf6 {[%emt 0:11:56]} Nxf6 {[%emt 0:00:50]} 13. Nd4 {[%emt 0:02:13]} Bb7 {[%emt 0:07:40]} 14. f3 {[%emt 0:06:54]} Nd5 {[%emt 0:01:20]} 15. Bf2 {[%emt 0:00:05]} g6 {[%emt 0:00:30]} 16. Re1 {[%emt 0:00:11]} Bh6+ {[%emt 0:00:47]} 17. Kd1 {[%emt 0:00:04]} O-O {[%emt 0:05:02]} 18. h4 {[%emt 0:02:01][%cal Bh2h4,Bh4h5][%mdl 32]} b4 {[%emt 0:16:14]} 19. h5 {[%emt 0:03:14] Hoping for hxg6.} g5 {[%emt 0:01:07][%cal Bg6g5,Bg5g4][%mdl 32]} 20. Kc1 {[%emt 0:04:42]} g4+ {[%emt 0:07:30]} 21. Kb1 {[%emt 0:00:05]} Bd2 {[%emt 0:00:21][%cal Bh6d2,Bd2g5,Bg5f6][%mdl 32]} 22. Rd1 {[%emt 0:08:00]} Bg5 {[%emt 0:02:52]} 23. Bc4 {[%emt 0:15:53]} Rac8 {[%emt 0:05:44]} 24. Bb3 {[%emt 0:01:01]} h6 {[%emt 0:01:47]} 25. Rhf1 {[%emt 0:02:02]} a5 {[%emt 0:09:09][%cal Ba6a5,Ba5a4][%mdl 32]} 26. Bg1 {[%emt 0:02:19]} gxf3 {[%emt 0:06:54]} 27. Nxf3 {[%emt 0:02:21]} Bf6 {[%emt 0:00:11]} 28. Rfe1 {[%emt 0:00:49]} Bc6 {[%emt 0:04:08]} 29. Bd4 {[%emt 0:02:37]} a4 {[%emt 0:01:23]} 30. Bc4 {[%emt 0:00:38]} a3 {[%emt 0:03:38]} 31. Bxf6 {[%emt 0:00:23]} Rxf6 {[%emt 0:00:47]} 32. Ne5 {[%emt 0:00:38]} axb2 {[%emt 0:00:12] Threatens to win with ...Nc3+.} 33. Kxb2 {[%emt 0:00:38]} Ba4 {[%emt 0:02:32]} 34. Bb3 {[%emt 0:00:42]} (34. Rd2 $14) 34... Bxb3 $11 {[%emt 0:00:34]} 35. axb3 {[%emt 0:00:03]} Rf2 {[%emt 0:00:23][%csl LRc2,LRg2]} 36. Rc1 {[%emt 0:00:02]} Rxg2 {[%emt 0:06:42]} 37. Nxd7 {[%emt 0:01:16]} Nf4 {[%emt 0:00:12]} 38. Re3 {[%emt 0:00:38][%mdl 8192] [#] Against Nd3+. White is on the road to losing.} (38. Ne5 $11 {and White stays safe.}) 38... Ne2 $1 $19 {[%emt 0:00:58]} 39. Rd1 {[%emt 0:00:28] [#]} (39. Nb6 $142 Rc3 40. Rxe2 Rxe2 41. Na4) 39... Nd4 $1 {[%emt 0:00:20][%mdl 512]} 40. Nf6+ {[%emt 0:00:33]} (40. Kb1 Nb5) 40... Kf7 {[%emt 0:01:19]} 41. Kb1 {[%emt 0:02:52]} Nf5 {[%emt 0:04:54]} ({Not} 41... Kxf6 42. Rxd4 Rgxc2 43. Rf4+ Ke7 44. Re1 $15) 42. Nh7 {[%emt 0:01:55]} Rc7 {[%emt 0:09:32] Inhibits Rd7+.} (42... Nxe3 43. Rd7+ Kg8 44. Nf6+ Kf8 45. Nh7+ Kg8 46. Nf6+ Kf8 47. Nh7+ Kg8 $11) 43. Rf1 {[%emt 0:02:11]} (43. Re4 {might work better.}) 43... Rcxc2 {[%emt 0:01:56] White must now prevent ...Rc3.} 44. Re4 {[%emt 0:01:59]} (44. Nf8 $142 Rb2+ 45. Ka1) 44... Rb2+ {[%emt 0:00:27] Black is clearly winning.} 45. Ka1 {[%emt 0:00:04]} Ra2+ {[%emt 0:01:36]} 46. Kb1 {[%emt 0:00:04]} Rgb2+ {[%emt 0:00:34]} 47. Kc1 {[%emt 0:00:05]} Rxb3 {[%emt 0:00:28] ...Ra1+ is the strong threat.} 48. Rff4 {[%emt 0:00:17]} Rh3 {[%emt 0:01:03]} 49. Kb1 {[%emt 0:00:32]} Rg2 {[%emt 0:02:39] ( -> ...Rh1+)} 50. Rf1 {[%emt 0:00:17] Prevents Rh1.} Rb3+ {[%emt 0:00:49]} 51. Ka1 {[%emt 0:00:46]} Rg7 {[%emt 0:01:01]} 52. Rd4 {[%emt 0:00:56]} Ra3+ {[%emt 0:00:59] Weighted Error Value: White=0.40/Black=0.11 (very precise)} ({Worse is} 52... Rxh7 53. Rd7+ Kg8 54. Rd8+ Kg7 55. Rd7+ Kh8 56. Rd8+ Kg7 57. Rd7+ Kf6 58. Rxh7 $11) 0-1